Department Family,Entity,Date,Expenses Type,Expense Area,Supplier,Transaction Number,  Total  ,
Department of Health,The Christie NHS Foundation Trust,05/08/2021,Paterson Redevelopment Project Works, Capital,INTEGRATED HEALTH PROJECTS,0000672931,"3,929,991.52",
Department of Health,The Christie NHS Foundation Trust,12/08/2021,Christie at Macclesfield Project Works, Capital,VINCI CONSTRUCTION UK LIMITED,0000673335,"1,696,375.20",
Department of Health,The Christie NHS Foundation Trust,19/08/2021,Energy Costs, Capital,VITAL ENERGI SOLUTIONS LTD,0000671775,"1,588,072.57",
Department of Health,The Christie NHS Foundation Trust,19/08/2021,Car Park Construction Works, Capital,VINCI CONSTRUCTION UK LIMITED,0000673756,"1,129,086.00",
Department of Health,The Christie NHS Foundation Trust,26/08/2021,Christie CEF Construction Works, Capital,VITAL ENERGI SOLUTIONS LTD,0000673002,"472,667.04",
Department of Health,The Christie NHS Foundation Trust,26/08/2021,Constrcution Works, Capital,VITAL ENERGI SOLUTIONS LTD,0000674438,"288,988.44",
Department of Health,The Christie NHS Foundation Trust,12/08/2021,Framework Support System Contract 2021-24, Capital,EUROPEAN ELECTRONIQUE LTD,0000672048,"119,165.09",
Department of Health,The Christie NHS Foundation Trust,26/08/2021,Installation of Air Conditioning systems, Capital,KOOL-IT SERVICES LIMITED,0000672289,"79,647.48",
Department of Health,The Christie NHS Foundation Trust,19/08/2021,Medical Equipment, Capital,XIEL LTD,0000672855,"76,847.42",
Department of Health,The Christie NHS Foundation Trust,26/08/2021,Consultancy Fees - June 2021, Capital,AIRE LOGIC LIMITED,0000673055,"71,195.00",
Department of Health,The Christie NHS Foundation Trust,26/08/2021,Consultancy Fees - July 2021, Capital,AIRE LOGIC LIMITED,0000673349,"70,775.00",
Department of Health,The Christie NHS Foundation Trust,05/08/2021,Project Management Fee, Capital,ARCADIS LLP,0000671927,"58,160.04",
Department of Health,The Christie NHS Foundation Trust,26/08/2021,Consultancy Fees - April 2021, Capital,AIRE LOGIC LIMITED,0000673052,"57,860.00",
Department of Health,The Christie NHS Foundation Trust,26/08/2021,Consultancy Fees - May 2021, Capital,AIRE LOGIC LIMITED,0000673056,"57,607.50",
Department of Health,The Christie NHS Foundation Trust,19/08/2021,Medical Equipment, Capital,ONCOLOGY IMAGING SYSTEMS LTD,0000672732,"51,600.00",
Department of Health,The Christie NHS Foundation Trust,19/08/2021,Drain Relocation works, Capital,INTEGRATED HEALTH PROJECTS,0000673837,"30,230.27",
Department of Health,The Christie NHS Foundation Trust,05/08/2021,Pathology Testing Services - August 2021, Christie Pathology Partner,THE CHRISTIE PATHOLOGY PARTNERSHIP LLP,0000671712,"379,726.40",
Department of Health,The Christie NHS Foundation Trust,05/08/2021,Facilities Management Services - August 2021, Christie Pathology Partner,CPP FACILITIES LLP,0000671714,"180,459.89",
Department of Health,The Christie NHS Foundation Trust,26/08/2021,Computer Software Package, Digital Services,SOFTCAT PLC,0000673262,"34,656.00",
Department of Health,The Christie NHS Foundation Trust,09/08/2021,Rates, Estates & Facilities,DD M/CR CITY COUNCIL (RATES),0000673586,"75,629.00",
Department of Health,The Christie NHS Foundation Trust,12/08/2021,Fixed Assets & Rental Costs - July 2021, Estates & Facilities,SALFORD ROYAL NHS FT,0000672120,"25,974.41",
Department of Health,The Christie NHS Foundation Trust,26/08/2021,Surveying works, Estates & Facilities,OAKLEAF SURVEYING LTD,0000673795,"20,900.00",
Department of Health,The Christie NHS Foundation Trust,19/08/2021,Clinical Activity Charge - July 2021, Network Services,WRIGHTINGTON WIGAN AND LEIGH NHS FT,0000673722,"277,691.07",
Department of Health,The Christie NHS Foundation Trust,26/08/2021,Clinical Activity Charge - August 2021, Network Services,WRIGHTINGTON WIGAN AND LEIGH NHS FT,0000674395,"277,691.07",
Department of Health,The Christie NHS Foundation Trust,19/08/2021,Service Contract for Medical Equipment, Network Services,VARIAN MEDICAL SYSTEMS UK LTD,0000672503,"245,586.54",
Department of Health,The Christie NHS Foundation Trust,24/08/2021,Blood Products, Network Services,DD NHS BLOOD AND TRANSPLANT,0000674066,"160,265.00",
Department of Health,The Christie NHS Foundation Trust,16/08/2021,Blood Products, Network Services,DD NHS BLOOD AND TRANSPLANT,0000668019,"160,265.00",
Department of Health,The Christie NHS Foundation Trust,02/08/2021,Support Services, Network Services,RAYSEARCH UK LTD,0000672072,"148,826.00",
Department of Health,The Christie NHS Foundation Trust,26/08/2021,Provision Services - August 2021, Network Services,MID CHESHIRE HOSPITALS NHS FT,0000673718,"52,893.00",
Department of Health,The Christie NHS Foundation Trust,05/08/2021,Blood Products, Network Services,NHS BLOOD AND TRANSPLANT,0000671673,"49,993.88",
Department of Health,The Christie NHS Foundation Trust,12/08/2021,Blood Products, Network Services,THE ANTHONY NOLAN BONE MARROW,0000672510,"34,501.00",
Department of Health,The Christie NHS Foundation Trust,12/08/2021,Fixed Cost Recharge, Network Services,NHS BLOOD AND TRANSPLANT,0000672055,"28,346.66",
Department of Health,The Christie NHS Foundation Trust,12/08/2021,PET-CT Recharge ,Christie Medical Physics,ALLIANCE MEDICAL LTD,0000672227,"103,248.00",
Department of Health,The Christie NHS Foundation Trust,26/08/2021,Drugs,Christie Medical Physics,ALLIANCE MEDICAL RADIOPHARMACY LIMITED,0000674391,"25,924.68",
Department of Health,The Christie NHS Foundation Trust,12/08/2021,Medical Equipment,Clin Support & Spec Surgery,MANCHESTER UNIVERSITY NHS FT,0000670836,"563,394.00",
Department of Health,The Christie NHS Foundation Trust,26/08/2021,Medical Equipment,Clin Support & Spec Surgery,NHS SUPPLY CHAIN,0000673276,"183,132.47",
Department of Health,The Christie NHS Foundation Trust,05/08/2021,Medical Equipment Service Plan,Clin Support & Spec Surgery,INTUITIVE SURGICAL LTD,0000671709,"130,000.00",
Department of Health,The Christie NHS Foundation Trust,05/08/2021,Medical Equipment Service Plan,Clin Support & Spec Surgery,INTUITIVE SURGICAL LTD,0000671708,"130,000.00",
Department of Health,The Christie NHS Foundation Trust,26/08/2021,Support and Maintenance costs for Medical Systems ,Clin Support & Spec Surgery,GE MEDICAL SYSTEMS LIMITED,0000672841,"33,249.99",
Department of Health,The Christie NHS Foundation Trust,12/08/2021,Drugs,Drugs,BAXTER HEALTHCARE LTD,0000673096,"358,148.40",
Department of Health,The Christie NHS Foundation Trust,19/08/2021,Drugs,Drugs,BAXTER HEALTHCARE LTD,0000672601,"152,312.81",
Department of Health,The Christie NHS Foundation Trust,05/08/2021,Drugs,Drugs,BAXTER HEALTHCARE LTD,0000671763,"136,155.62",
Department of Health,The Christie NHS Foundation Trust,05/08/2021,Drugs,Drugs,BAXTER HEALTHCARE LTD,0000671610,"129,791.33",
Department of Health,The Christie NHS Foundation Trust,26/08/2021,Drugs,Drugs,BAXTER HEALTHCARE LTD,0000673161,"126,822.13",
Department of Health,The Christie NHS Foundation Trust,12/08/2021,Drugs,Drugs,BAXTER HEALTHCARE LTD,0000672145,"124,422.38",
Department of Health,The Christie NHS Foundation Trust,12/08/2021,Drugs,Drugs,BAXTER HEALTHCARE LTD,0000672143,"119,051.59",
Department of Health,The Christie NHS Foundation Trust,05/08/2021,Drugs,Drugs,BAXTER HEALTHCARE LTD,0000671602,"111,246.67",
Department of Health,The Christie NHS Foundation Trust,12/08/2021,Drugs,Drugs,BAXTER HEALTHCARE LTD,0000672147,"109,578.95",
Department of Health,The Christie NHS Foundation Trust,12/08/2021,Drugs,Drugs,TAMESIDE AND GLOSSOP INTEGRATED CARE NHS,0000670616,"105,407.77",
Department of Health,The Christie NHS Foundation Trust,19/08/2021,Drugs,Drugs,BAXTER HEALTHCARE LTD,0000672644,"99,514.10",
Department of Health,The Christie NHS Foundation Trust,12/08/2021,Drugs,Drugs,TAMESIDE AND GLOSSOP INTEGRATED CARE NHS,0000668571,"89,786.70",
Department of Health,The Christie NHS Foundation Trust,26/08/2021,Drugs,Drugs,BAXTER HEALTHCARE LTD,0000673095,"80,929.00",
Department of Health,The Christie NHS Foundation Trust,05/08/2021,Drugs,Drugs,BAXTER HEALTHCARE LTD,0000672144,"77,666.63",
Department of Health,The Christie NHS Foundation Trust,19/08/2021,Drugs,Drugs,BAXTER HEALTHCARE LTD,0000672737,"70,179.14",
Department of Health,The Christie NHS Foundation Trust,12/08/2021,Drugs,Drugs,ALCURA UK LIMITED,0000673628,"69,874.98",
Department of Health,The Christie NHS Foundation Trust,26/08/2021,Drugs,Drugs,BAXTER HEALTHCARE LTD,0000673094,"69,190.80",
Department of Health,The Christie NHS Foundation Trust,19/08/2021,Drugs,Drugs,BAXTER HEALTHCARE LTD,0000673092,"63,158.12",
Department of Health,The Christie NHS Foundation Trust,26/08/2021,Drugs,Drugs,BAXTER HEALTHCARE LTD,0000673093,"61,853.17",
Department of Health,The Christie NHS Foundation Trust,12/08/2021,Drugs,Drugs,BAXTER HEALTHCARE LTD,0000672245,"58,416.72",
Department of Health,The Christie NHS Foundation Trust,19/08/2021,Drugs,Drugs,BAXTER HEALTHCARE LTD,0000672622,"57,770.10",
Department of Health,The Christie NHS Foundation Trust,19/08/2021,Drugs,Drugs,THE CHRISTIE CLINIC (HCA),0000673794,"40,860.00",
Department of Health,The Christie NHS Foundation Trust,19/08/2021,Drugs,Drugs,HEALTHCARE AT HOME LTD,0000674138,"39,302.00",
Department of Health,The Christie NHS Foundation Trust,26/08/2021,Drugs,Drugs,HEALTHCARE AT HOME LTD,0000674662,"36,543.00",
Department of Health,The Christie NHS Foundation Trust,19/08/2021,Drugs,Drugs,HEALTHCARE AT HOME LTD,0000674089,"32,795.00",
Department of Health,The Christie NHS Foundation Trust,26/08/2021,Drugs,Drugs,STOCKPORT NHS FOUNDATION TRUST,0000661660,"26,721.00",
Department of Health,The Christie NHS Foundation Trust,26/08/2021,GM Cancer Inequalities Project,Manchester Cancer,GREATER MANCHESTER CENTRE FOR VOLUNTARY,0000673757,"79,601.00",
Department of Health,The Christie NHS Foundation Trust,26/08/2021,Cancer Clinical Nurse Specialist Framework,Manchester Cancer,THE WORKFORCE DEVELOPMENT TRUST LTD,0000672949,"78,930.00",
Department of Health,The Christie NHS Foundation Trust,16/08/2021,"CNST,LTPS&PES - August 2021",Quality & Standards,DD  NHS RESOLUTION,0000673937,"177,439.90",
Department of Health,The Christie NHS Foundation Trust,12/08/2021,The Christie NHS FT Balance,The Christie NHS FT Balance,NHS SUPPLY CHAIN,0000673462,"88,700.19",
Department of Health,The Christie NHS Foundation Trust,12/08/2021,The Christie NHS FT Balance,The Christie NHS FT Balance,NHS SUPPLY CHAIN,0000672124,"82,669.35",
Department of Health,The Christie NHS Foundation Trust,26/08/2021,The Christie NHS FT Balance,The Christie NHS FT Balance,NHS SUPPLY CHAIN,0000673466,"72,410.12",
Department of Health,The Christie NHS Foundation Trust,19/08/2021,The Christie NHS FT Balance,The Christie NHS FT Balance,NHS SUPPLY CHAIN,0000673465,"70,406.58",
Department of Health,The Christie NHS Foundation Trust,12/08/2021,The Christie NHS FT Balance,The Christie NHS FT Balance,NHS SUPPLY CHAIN,0000672123,"67,951.23",
